fUSD/lending_fUSD_20240918
["ID","MTS","AMOUNT","RATE_DAILY","PERIOD"]
[338480165,1726688386430,150.0,0.00012591,2]
[338480166,1726688386453,150.0,0.00012591,2]
[338480167,1726688386474,150.0,0.00012591,2]
[338480168,1726688386506,57.3,0.00012591,2]
[338480169,1726688552939,308.23641662,0.000127,2]
[338480170,1726688666567,150.0,0.00012532,2]
[338480171,1726688666588,150.0,0.00012532,2]
[338480172,1726688666609,150.0,0.00012532,2]
[338480173,1726688666630,150.0,0.00012532,2]
[338480174,1726688666651,150.0,0.00012532,2]
[338480175,1726688666674,150.0,0.00012532,2]
[338480176,1726688666695,150.0,0.00012532,2]
[338480177,1726688666715,56.4,0.00012532,2]
[338480178,1726688678326,150.0,0.000127,2]
[338480179,1726688678347,55.4909444,0.000127,2]
[338480180,1726688727211,150.0,0.00011688,2]
[338480181,1726688727237,80.27365888,0.00011688,2]
[338480182,1726688733924,158.34165287,0.00011,2]
[338480183,1726688733946,150.0,0.00011,2]
[338480184,1726688733968,150.0,0.00011,2]
[338480185,1726688733995,150.0,0.00011,2]
[338480186,1726688734017,150.0,0.00011,2]
[338480187,1726688734038,150.0,0.00011,2]
[338480188,1726688734060,141.65834713,0.00011,2]
[338480189,1726688763621,1500.0,0.00012448,2]
[338480190,1726688822717,2926.65,0.00012491,2]
[338480191,1726688840146,150.0,0.00012491,2]
[338480192,1726688840168,150.0,0.00012491,2]
[338480193,1726688861481,150.0,0.00010682,2]
[338480194,1726688861503,150.0,0.00010682,2]
[338480195,1726688861525,41.05,0.00010682,2]
[338480196,1726688916937,108.95,0.00010959,2]
[338480197,1726688916959,59.5,0.00010959,2]
[338480199,1726688968551,90.5,0.00012624,2]
[338480200,1726688968577,81.67,0.00012624,2]
[338480201,1726688968694,68.33,0.00012624,2]
[338480202,1726688968715,150.0,0.00012624,2]
[338480203,1726688968739,31.67,0.00012624,2]
[338480204,1726688968770,118.33,0.00012628,2]
[338480205,1726688968793,53.84,0.00012628,2]
[338480206,1726688968978,172.17,0.00012631,2]
[338480207,1726688969213,2.05799399,0.00012634,2]
[338480208,1726688969237,170.11200601,0.00012634,2]
[338480209,1726688969840,172.17,0.00012637,2]
[338480210,1726688969960,172.17,0.00012641,2]
[338480211,1726688970141,172.17,0.00012644,2]
[338480212,1726688970388,172.17,0.00012647,2]
[338480213,1726688970663,172.17,0.00012651,2]
[338480214,1726688970882,172.17,0.00012654,2]
[338480215,1726688971126,172.17,0.00012657,2]
[338480216,1726688971366,172.17,0.00012661,2]
[338480217,1726688971792,172.17,0.00012664,2]
[338480218,1726688971842,172.17,0.00012667,2]
[338480219,1726688972085,172.17,0.00012671,2]
[338480220,1726688972292,172.17,0.00012674,2]
[338480221,1726688972556,172.17,0.00012677,2]
[338480222,1726688972779,172.17,0.00012681,2]
[338480223,1726688973237,172.17,0.00012684,2]
[338480224,1726688973346,172.17,0.00012687,2]
[338480225,1726688997959,410.9818888,0.00012668,2]
[338480226,1726689022464,155.73,0.00012452,2]
[338480227,1726689031401,184.44822387,0.00012668,2]
[338480240,1726689032788,-167.71,0.00012758,2]
[338480242,1726689032797,-450.0,0.00012768,2]
[338480244,1726689032807,-250.0,0.00012768,2]
[338480246,1726689032816,-2000.0,0.00012794,2]
[338480248,1726689032825,-300.0,0.00012899,2]
[338480250,1726689032834,-185.73578068,0.000129,2]
[338480252,1726689032843,-156.2770892,0.000129,2]
[338480253,1726689032853,-167.53010769,0.000129,2]
[338480254,1726689032862,-164.16720059,0.000129,2]
[338480255,1726689032871,-352.56822616,0.000129,2]
[338480256,1726689032880,-472.48904444,0.000129,2]
[338480257,1726689032891,-221.61260684,0.000129,2]
[338480258,1726689032900,-170.97,0.00012929,2]
[338480259,1726689032911,-341.05,0.00012946,2]
[338480260,1726689032921,-500.0,0.00012973,2]
[338480261,1726689032931,-1000.0,0.00012973,2]
[338480262,1726689032940,-157.83,0.0001299,2]
[338480263,1726689032950,-157.83,0.0001299,2]
[338480264,1726689032963,-425.295,0.00012999,2]
[338480265,1726689032972,-160.813,0.00012999,2]
[338480266,1726689032982,-150.0,0.00012999,2]
[338480267,1726689032992,-500.0,0.00012999,2]
[338480268,1726689033001,-500.0,0.00012999,2]
[338480269,1726689033011,-500.0,0.00012999,2]
[338480270,1726689033020,-500.0,0.00012999,2]
[338480271,1726689033028,-500.0,0.00012999,2]
[338480273,1726689033037,-273.43121519,0.00012999,2]
[338480274,1726689033046,-500.0,0.00012999,2]
[338480275,1726689033055,-109212.60179964,0.00013,2]
[338480276,1726689033067,-363.76455997,0.00013,2]
[338480277,1726689033144,-4522.06617273,0.00013,2]
[338480278,1726689033156,-8395.70233375,0.00013,2]
[338480279,1726689033168,-10778.66962938,0.00013,2]
[338480280,1726689033178,-3699.89675971,0.00013,2]
[338480281,1726689033189,-4675.59495334,0.00013,2]
[338480282,1726689033200,-966.21666469,0.00013,2]
[338480283,1726689033215,-741.8811006,0.00013,2]
[338480284,1726689033350,-844.4503927,0.00013,2]
[338480285,1726689033362,-2207.62085434,0.00013,2]
[338480286,1726689033373,-5236.44719773,0.00013,2]
[338480287,1726689033404,-6959.30203298,0.00013,2]
[338480288,1726689033434,-637.70410917,0.00013,2]
[338480289,1726689033446,-477.20950496,0.00013,2]
[338480290,1726689033461,-251.35461498,0.00013,2]
[338480291,1726689033472,-1299.333284,0.00013,2]
[338480292,1726689033550,-784.34351086,0.00013,2]
[338480293,1726689033561,-5509.13788547,0.00013,2]
[338480294,1726689033573,-672.3424,0.00013,2]
[338480295,1726689033585,-5182.62452342,0.00013,2]
[338480296,1726689033596,-1367.57781629,0.00013,2]
[338480303,1726689038326,-421.399227,0.00013,2]
[338480304,1726689038383,-902.63081299,0.00013,2]
[338480305,1726689038395,-647.82687403,0.00013,2]
[338480306,1726689038407,-918.803945,0.00013,2]
[338480307,1726689038420,-615.002,0.00013,2]
[338480308,1726689038449,-1244567.71511531,0.00013,2]
[338480309,1726689038465,-576.87446552,0.00013,2]
[338480310,1726689038514,-598.84255907,0.00013,2]
[338480311,1726689038575,-785.23100942,0.00013,2]
[338480312,1726689038588,-250.485,0.00013,2]
[338480355,1726689039081,-282.75145112,0.00013,2]
[338480357,1726689039092,-1335.40626258,0.00013,2]
[338480359,1726689039104,-1239.22320358,0.00013,2]
[338480361,1726689039115,-7546.42093955,0.00013,2]
[338480363,1726689039127,-17726.71223765,0.00013,2]
[338480367,1726689039149,-531.06930366,0.00013,2]
[338480470,1726689040418,-687.02021086,0.00013,2]
[338480472,1726689040429,-1007.52312096,0.00013,2]
[338480481,1726689040518,-625.96902228,0.00013,2]
[338480484,1726689040529,-1383.75,0.00013,2]
[338480486,1726689040540,-477.21,0.00013,2]
[338480494,1726689040616,-719.26763437,0.00013,2]
[338480496,1726689040627,-395.92311807,0.00013,2]
[338480498,1726689040638,-359.18974162,0.00013,2]
[338480502,1726689040658,-391.77965226,0.00013,2]
[338480504,1726689040669,-1207.68678,0.00013,2]
[338481083,1726689046704,-412548.6292,0.00013,2]
[338481088,1726689046750,-300.0,0.00013,2]
[338481165,1726689048026,-631.72417216,0.00013,2]
[338481166,1726689048038,-1458.77937784,0.00013,2]
[338481324,1726689338290,1087.43,0.00012642,2]
[338481325,1726689408505,324.09,0.00010795,2]
[338481326,1726689568275,155.73,0.00012711,2]
[338481327,1726689621829,2275.09,0.00012463,2]
[338481328,1726689639770,250.0,0.00012458,2]
[338481329,1726689660408,4345.02,0.00012444,2]
[338481330,1726689679544,154.25,0.00010959,2]
[338481331,1726689696331,167.71,0.00012444,2]
[338481332,1726689733796,405.32,0.00012475,2]
[338481333,1726689738979,800.0,0.00012475,2]
[338481334,1726689906278,1210.0,0.00012484,2]
[338481335,1726689954078,578.26,0.00012483,2]
[338481336,1726689967994,2479.17,0.00012711,2]
[338481337,1726689998069,324.78,0.00010611,2]
[338481338,1726690028912,250.0,0.00012498,2]
[338481339,1726690060626,200.0,0.00012509,2]
[338481350,1726690179794,161.27,0.00010959,2]
[338481353,1726690215209,250.0,0.00012711,2]
[338481373,1726690231608,-199.02,0.00012813,2]
[338481374,1726690231618,-324.78,0.00012875,2]
[338481376,1726690231628,-300.0,0.00012899,2]
[338481378,1726690231637,-599.2008,0.000129,2]
[338481379,1726690231647,-425.24014005,0.000129,2]
[338481381,1726690231657,-1348.9238,0.000129,2]
[338481382,1726690231667,-179.27321286,0.000129,2]
[338481383,1726690231676,-160.06579612,0.00012973,2]
[338481384,1726690231686,-216.30053767,0.0001299,2]
[338481385,1726690231696,-152.14,0.0001299,2]
[338481386,1726690231705,-393.105,0.00012999,2]
[338481388,1726690231715,-164.238,0.00012999,2]
[338481390,1726690231724,-204.53571909,0.00012999,2]
[338481393,1726690231761,-305.08856864,0.00012999,2]
[338481420,1726690237491,-1257.43565756,0.00012999,2]
[338481421,1726690237549,-232.94005471,0.00012999,2]
[338481422,1726690237558,-150.0,0.00012999,2]
[338481423,1726690237568,-446.16097284,0.00013,2]
[338481424,1726690237653,-991.02565311,0.00013,2]
[338481425,1726690237664,-400.0,0.00013,2]
[338481426,1726690237760,-4181.1963038,0.00013,2]
[338481427,1726690237772,-76842.6305764,0.00013,2]
[338481428,1726690237782,-141872.5419593,0.00013,2]
[338481429,1726690237794,-2176.74324063,0.00013,2]
[338481588,1726690239518,-91681.41340885,0.00013,2]
[338481590,1726690239530,-794.79791123,0.00013,2]
[338481595,1726690239572,-34390.09549259,0.00013,2]
[338481598,1726690239583,-87390.48324477,0.00013,2]
[338481600,1726690239595,-64524.22854119,0.00013,2]
[338481602,1726690239606,-27053.90907254,0.00013,2]
[338481604,1726690239617,-391.951146,0.00013,2]
[338481607,1726690239636,-1458.91842534,0.00013,2]
[338481609,1726690239647,-2383.28089997,0.00013,2]
[338481641,1726690239935,-6005.8999,0.00013,2]
[338481643,1726690239947,-4196.38718428,0.00013,2]
[338481646,1726690239968,-6664.80077973,0.00013,2]
[338481648,1726690239979,-812.48363188,0.00013,2]
[338481651,1726690239992,-2663.5628872,0.00013,2]
[338481653,1726690240003,-2110.66568425,0.00013,2]
[338481655,1726690240015,-397.95,0.00013,2]
[338481657,1726690240026,-11609.2,0.00013,2]
[338481660,1726690240040,-629.75189956,0.00013,2]
[338481662,1726690240051,-2925.98626232,0.00013,2]
[338481664,1726690240062,-998.486475,0.00013,2]
[338481677,1726690240177,-969.65529697,0.00013,2]
[338481898,1726690242526,-7300.0,0.00013,2]
[338482081,1726690244547,-328.04999985,0.00013,2]
[338482082,1726690244559,-1302.1840501,0.00013,2]
[338482135,1726690245883,-5420.415,0.00013,2]
[338482137,1726690245894,-359.73856219,0.00013,2]
[338482139,1726690245905,-636.49603942,0.00013,2]
[338482142,1726690245918,-1720.3100005,0.00013,2]
[338482144,1726690245930,-2382.52120733,0.00013,2]
[338482147,1726690245941,-259975.90255516,0.00013,2]
[338482149,1726690245951,-332.55,0.00013,2]
[338482150,1726690245961,-150.99,0.00013,2]
[338482152,1726690245969,-20593.64,0.00013,2]
[338482154,1726690245978,-499.99,0.00013,2]
[338482156,1726690245987,-1517.42,0.00013,2]
[338482158,1726690245997,-250.0,0.00013057,2]
[338482160,1726690246007,-170.97,0.00013072,2]
[338482162,1726690246016,-1901.33,0.00013084,2]
[338482164,1726690246026,-499.99,0.00013084,2]
[338482165,1726690246035,-1488.13,0.00013084,2]
[338482167,1726690246044,-425.24013997,0.00013122,2]
[338482169,1726690246054,-287.12,0.00013122,2]
[338482171,1726690246063,-179.2732128,0.00013186,2]
[338482173,1726690246072,-5834.04,0.00013188,2]
[338482175,1726690246083,-9999.99,0.00013235,2]
[338482177,1726690246092,-152.41,0.00013272,2]
[338482179,1726690246101,-150.0,0.000133,2]
[338482181,1726690246109,-357.22,0.000133,2]
[338482183,1726690246118,-427.2,0.000133,2]
[338482184,1726690246127,-150.0,0.000133,2]
[338482186,1726690246136,-2910.91323503,0.0001332,2]
[338482188,1726690246145,-425.24013997,0.00013344,2]
[338482190,1726690246155,-150.0,0.000134,2]
[338482192,1726690246163,-150.0,0.000134,2]
[338482194,1726690246173,-428.04,0.000134,2]
[338482196,1726690246182,-357.9,0.000134,2]
[338482198,1726690246191,-179.2732128,0.00013471,2]
[338482200,1726690246201,-160.1049397,0.00013499,2]
[338482202,1726690246212,-844.56,0.000135,2]
[338482204,1726690246221,-300.0,0.000135,2]
[338482206,1726690246230,-150.0,0.000135,2]
[338482208,1726690246239,-1505.42,0.000135,2]
[338482209,1726690246248,-150.0,0.000135,2]
[338482211,1726690246257,-217.85,0.000135,2]
[338482213,1726690246267,-428.04,0.000135,2]
[338482215,1726690246276,-300.0,0.000135,2]
[338482217,1726690246285,-449.0,0.000135,2]
[338482219,1726690246294,-357.9,0.000135,2]
[338482221,1726690246303,-150.0,0.000135,2]
[338482223,1726690246312,-425.24013997,0.00013567,2]
[338482225,1726690246322,-300.73,0.000136,2]
[338482227,1726690246331,-1919.0,0.00013625,2]
[338482229,1726690246340,-248.0,0.00013625,2]
[338482231,1726690246349,-1640.653,0.00013625,2]
[338482233,1726690246358,-806.0,0.00013625,2]
[338482235,1726690246367,-1146.0,0.0001365,2]
[338482237,1726690246376,-150.0,0.0001365,2]
[338482239,1726690246385,-9311.0,0.0001365,2]
[338482241,1726690246394,-1079.0,0.0001365,2]
[338482243,1726690246403,-150.0,0.00013699,2]
[338482245,1726690246412,-5883.23,0.00013699,2]
[338482247,1726690246422,-3485.24,0.00013699,2]
[338482249,1726690246432,-179.2732128,0.00013757,2]
[338482251,1726690246441,-425.24013997,0.00013789,2]
[338482253,1726690246450,-2000.0,0.00013821,2]
[338482255,1726690246461,-150.0,0.00013849,2]
[338482257,1726690246470,-150.0,0.00013849,2]
[338482259,1726690246479,-767.561,0.00013849,2]
[338482261,1726690246489,-995.024,0.00013849,2]
[338482263,1726690246498,-615.0,0.000139,2]
[338482265,1726690246508,-181.47253357,0.000139,2]
[338482267,1726690246517,-164.47885726,0.000139,2]
[338482269,1726690246528,-500.0,0.00014,2]
[338482271,1726690246537,-500.0,0.00014,2]
[338482273,1726690246546,-522.37,0.00014,2]
[338482275,1726690246555,-500.0,0.00014,2]
[338482277,1726690246565,-500.0,0.00014,2]
[338482279,1726690246574,-500.0,0.00014,2]
[338482281,1726690246583,-500.0,0.00014,2]
[338482283,1726690246593,-553.2,0.00014,2]
[338482285,1726690246602,-35223.01540068,0.00014,2]
[338482287,1726690246611,-12139.13444439,0.00014,2]
[338482289,1726690246620,-425.24013997,0.00014011,2]
[338482291,1726690246630,-800.0,0.00014035,2]
[338482293,1726690246639,-179.2732128,0.00014043,2]
[338482295,1726690246648,-150.0,0.00014059,2]
[338482297,1726690246657,-255.0,0.00014104,2]
[338482299,1726690246666,-420.0,0.00014147,2]
[338482301,1726690246676,-425.24013997,0.00014233,2]
[338482303,1726690246685,-179.2732128,0.00014329,2]
[338482305,1726690246694,-150.0,0.0001442,2]
[338482307,1726690246703,-425.24013997,0.00014456,2]
[338482309,1726690246717,-152.0,0.00014472,3]
[338482311,1726690246730,-588.56681748,0.000145,2]
[338482313,1726690246740,-1000.0,0.00014521,2]
[338482315,1726690246749,-259.401791,0.00014521,2]
[338482317,1726690246758,-1000.0,0.000146,4]
[338482319,1726690246769,-1000.0,0.000146,4]
[338482321,1726690246778,-980.0,0.000146,4]
[338482323,1726690246787,-1000.0,0.000146,4]
[338482325,1726690246797,-179.2732128,0.00014614,2]
[338482327,1726690246806,-2000.0,0.00014643,2]
[338482329,1726690246815,-425.24013997,0.00014678,2]
[338482331,1726690246825,-430.0,0.000147,4]
[338482333,1726690246834,-300.0,0.00014718,2]
[338482335,1726690246843,-150.0,0.0001478,2]
[338482337,1726690246853,-150.0,0.0001478,2]
[338482339,1726690246863,-150.0,0.00014781,2]
[338482341,1726690246873,-299.879986,0.0001479,2]
[338482343,1726690246883,-3000.0,0.000148,2]
[338482345,1726690246893,-583.21556012,0.00014873,2]
[338482347,1726690246903,-500.0,0.00014875,2]
[338482349,1726690246913,-200.0,0.00014875,2]
[338482351,1726690246931,-150.0,0.00014878,2]
[338482353,1726690246941,-1202.7913741,0.0001489,2]
[338482355,1726690246951,-1202.79137409,0.00014895,2]
[338482357,1726690246972,-1281.09007653,0.000149,2]
[338482359,1726690246984,-1281.09007653,0.000149,2]
[338482361,1726690246995,-1281.09007653,0.000149,2]
[338482362,1726690247007,-1281.09007653,0.000149,2]
[338482363,1726690247019,-1281.09007653,0.000149,2]
[338482364,1726690247028,-1281.09007653,0.000149,2]
[338482365,1726690247039,-1281.09007653,0.000149,2]
[338482366,1726690247049,-1281.09007653,0.000149,2]
[338482367,1726690247060,-1281.09007653,0.000149,2]
[338482368,1726690247069,-1281.09007653,0.000149,2]
[338482369,1726690247079,-1281.09007653,0.000149,2]
[338482370,1726690247088,-1281.09007653,0.000149,2]
[338482371,1726690247097,-1281.09007653,0.000149,2]
[338482372,1726690247106,-1281.09007653,0.000149,2]
[338482373,1726690247116,-1281.09007653,0.000149,2]
[338482374,1726690247125,-1281.09007653,0.000149,2]
[338482375,1726690247134,-1281.09007653,0.000149,2]
[338482376,1726690247143,-1281.09007653,0.000149,2]
[338482377,1726690247153,-1281.09007653,0.000149,2]
[338482378,1726690247162,-1281.59,0.000149,2]
[338482379,1726690247172,-5124.43530613,0.000149,2]
[338482380,1726690247181,-5124.43530613,0.000149,2]
[338482382,1726690247192,-5124.43530613,0.000149,2]
[338482384,1726690247201,-5124.43530613,0.000149,2]
[338482386,1726690247216,-5124.43530613,0.000149,2]
[338482388,1726690247225,-5124.43530613,0.000149,2]
[338482390,1726690247234,-5124.43530613,0.000149,2]
[338482392,1726690247243,-5124.43530613,0.000149,2]
[338482394,1726690247253,-5124.43530613,0.000149,2]
[338482396,1726690247262,-5124.43530613,0.000149,2]
[338482398,1726690247271,-5124.43530613,0.000149,2]
[338482400,1726690247280,-5124.43530613,0.000149,2]
[338482402,1726690247290,-5124.43530613,0.000149,2]
[338482404,1726690247299,-5124.43530613,0.000149,2]
[338482406,1726690247307,-5124.43530613,0.000149,2]
[338482408,1726690247317,-5124.43530613,0.000149,2]
[338482410,1726690247326,-5124.43530613,0.000149,2]
[338482412,1726690247335,-5124.43530613,0.000149,2]
[338482414,1726690247344,-5124.43530613,0.000149,2]
[338482416,1726690247353,-5124.93,0.000149,2]
[338482418,1726690247362,-425.24013997,0.000149,2]
[338482420,1726690247371,-179.2732128,0.000149,2]
[338482422,1726690247380,-156.4743836,0.000149,2]
[338482424,1726690247389,-156.4743836,0.000149,2]
[338482426,1726690247398,-156.4743836,0.000149,2]
[338482428,1726690247408,-156.4743836,0.000149,2]
[338482430,1726690247417,-156.4743836,0.000149,2]
[338482432,1726690247426,-156.4743836,0.000149,2]
[338482434,1726690247436,-156.4743836,0.000149,2]
[338482436,1726690247446,-156.4743836,0.000149,2]
[338482438,1726690247455,-156.4743836,0.000149,2]
[338482440,1726690247467,-156.4743836,0.000149,2]
[338482442,1726690247476,-156.4743836,0.000149,2]
[338482444,1726690247485,-156.4743836,0.000149,2]
[338482446,1726690247495,-156.4743836,0.000149,2]
[338482448,1726690247504,-156.4743836,0.000149,2]
[338482450,1726690247513,-156.4743836,0.000149,2]
[338482452,1726690247522,-156.4743836,0.000149,2]
[338482454,1726690247531,-156.4743836,0.000149,2]
[338482455,1726690247540,-156.4743836,0.000149,2]
[338482457,1726690247549,-156.4743836,0.000149,2]
[338482459,1726690247559,-156.97,0.000149,2]
[338482461,1726690247568,-625.97253441,0.000149,2]
[338482463,1726690247576,-625.97253441,0.000149,2]
[338482465,1726690247587,-625.97253441,0.000149,2]
[338482467,1726690247598,-625.97253441,0.000149,2]
[338482468,1726690247609,-625.97253441,0.000149,2]
[338482470,1726690247621,-625.97253441,0.000149,2]
[338482472,1726690247631,-625.97253441,0.000149,2]
[338482475,1726690247644,-625.97253441,0.000149,2]
[338482477,1726690247653,-625.97253441,0.000149,2]
[338482479,1726690247664,-625.97253441,0.000149,2]
[338482480,1726690247673,-625.97253441,0.000149,2]
[338482482,1726690247682,-625.97253441,0.000149,2]
[338482484,1726690247692,-625.97253441,0.000149,2]
[338482486,1726690247701,-625.97253441,0.000149,2]
[338482488,1726690247713,-625.97253441,0.000149,2]
[338482490,1726690247723,-625.97253441,0.000149,2]
[338482492,1726690247732,-625.97253441,0.000149,2]
[338482494,1726690247742,-625.97253441,0.000149,2]
[338482495,1726690247751,-625.97253441,0.000149,2]
[338482497,1726690247760,-626.47,0.000149,2]
[338482499,1726690247770,-1200.4501434,0.000149,2]
[338482501,1726690247780,-1200.4501434,0.000149,2]
[338482503,1726690247789,-1200.4501434,0.000149,2]
[338482505,1726690247798,-1200.4501434,0.000149,2]
[338482507,1726690247808,-1200.4501434,0.000149,2]
[338482509,1726690247817,-1200.4501434,0.000149,2]
[338482511,1726690247826,-1200.4501434,0.000149,2]
[338482512,1726690247836,-1200.4501434,0.000149,2]
[338482514,1726690247845,-1200.4501434,0.000149,2]
[338482516,1726690247854,-1200.4501434,0.000149,2]
[338482518,1726690247864,-1200.4501434,0.000149,2]
[338482520,1726690247873,-1200.4501434,0.000149,2]
[338482522,1726690247883,-1200.4501434,0.000149,2]
[338482524,1726690247893,-1200.4501434,0.000149,2]
[338482526,1726690247902,-1200.4501434,0.000149,2]
[338482528,1726690247912,-1200.4501434,0.000149,2]
[338482530,1726690247923,-1200.4501434,0.000149,2]
[338482532,1726690247932,-1200.4501434,0.000149,2]
[338482534,1726690247942,-1200.4501434,0.000149,2]
[338482536,1726690247952,-1200.95,0.000149,2]
[338482538,1726690247964,-4801.8755736,0.000149,2]
[338482558,1726690248312,-4801.8755736,0.000149,2]
[338482559,1726690248321,-4801.8755736,0.000149,2]
[338482560,1726690248331,-4801.8755736,0.000149,2]
[338482561,1726690248341,-4801.8755736,0.000149,2]
[338482562,1726690248350,-4801.8755736,0.000149,2]
[338482563,1726690248359,-4801.8755736,0.000149,2]
[338482564,1726690248368,-4801.8755736,0.000149,2]
[338482565,1726690248377,-4801.8755736,0.000149,2]
[338482566,1726690248386,-4801.8755736,0.000149,2]
[338482567,1726690248395,-4801.8755736,0.000149,2]
[338482568,1726690248405,-4801.8755736,0.000149,2]
[338482569,1726690248415,-4801.8755736,0.000149,2]
[338482570,1726690248424,-4801.8755736,0.000149,2]
[338482571,1726690248433,-4801.8755736,0.000149,2]
[338482572,1726690248442,-4801.8755736,0.000149,2]
[338482573,1726690248451,-4801.8755736,0.000149,2]
[338482574,1726690248462,-4801.8755736,0.000149,2]
[338482575,1726690248472,-4801.8755736,0.000149,2]
[338482576,1726690248483,-4802.37,0.000149,2]
[338482577,1726690248493,-1202.79137409,0.000149,2]
[338482578,1726690248503,-152.41,0.0001493,2]
[338482579,1726690248513,-150.0,0.00014949,5]
[338482580,1726690248522,-150.0,0.00014966,2]
[338482581,1726690248532,-150.0,0.00014973,2]
[338482582,1726690248542,-152.14,0.0001498,2]
[338482583,1726690248551,-150.01,0.00014989,2]
[338482584,1726690248561,-751.2263225,0.00014989,2]
[338482585,1726690248571,-506568.4542966,0.0001499,2]
[338482586,1726690248580,-69648.26448961,0.0001499,3]
[338482587,1726690248595,-687.6601824,0.0001499,3]
[338482588,1726690248607,-1778.99,0.0001499,3]
[338482594,1726690248750,-177805.24882099,0.0001499,3]
[338482596,1726690248761,-13779.17179148,0.0001499,3]
[338482600,1726690248788,-503.10200021,0.0001499,3]
[338482603,1726690248799,-12722.77961447,0.0001499,3]
[338482605,1726690248811,-5000.0,0.0001499,3]
[338482607,1726690248823,-1200.0,0.0001499,3]
[338482754,1726690250384,-360.0,0.00013213,2]
[338482756,1726690250393,-344.85845544,0.00014864,2]
[338482758,1726690250405,-15.14154456,0.00014864,2]
[338482760,1726690250414,-74585.32084698,0.0001499,3]
[338482762,1726690250425,-601.3007,0.0001499,3]
[338482765,1726690250447,-264.06840755,0.0001499,3]
[338482770,1726690250484,-4619.55423536,0.0001499,3]
[338482774,1726690250511,-11889.16564371,0.0001499,3]
[338482776,1726690250522,-9713.94895569,0.0001499,3]
[338482778,1726690250533,-7290.30369597,0.0001499,3]
[338482781,1726690250544,-3018.87036467,0.0001499,3]
[338482784,1726690250567,-5486.25292594,0.0001499,3]
[338482786,1726690250578,-792.73224283,0.0001499,3]
[338482789,1726690250589,-6770.28999999,0.0001499,3]
[338482791,1726690250601,-656.37,0.0001499,3]
[338482793,1726690250612,-2289.91559988,0.0001499,3]
[338482796,1726690250631,-414.56186707,0.0001499,3]
[338482798,1726690250642,-3121.61854213,0.0001499,3]
[338482801,1726690250653,-1470.51803953,0.0001499,3]
[338482803,1726690250664,-3338.58727615,0.0001499,3]
[338483511,1726690298081,12290.385682,6.781e-05,7]
[338483513,1726690405477,2000.0,0.00012812,120]
[338483514,1726690535554,1050.0,0.00011,2]
[338483515,1726690602359,500.0,0.00011164,2]
[338483516,1726690618083,329.02,0.00010793,2]
[338483517,1726690708886,158.05,0.00010959,2]
[338483518,1726690818358,145.4254827,0.00012711,2]
[338483519,1726690818384,104.5745173,0.00012711,2]
[338483520,1726690961423,590.06,0.00012711,2]
[338483521,1726691058661,4252.89,0.00012711,2]
[338483522,1726691120312,333.17,0.00010793,2]
[338483523,1726691128147,431.89,0.00012711,2]
[338483524,1726691129441,50493.58784983,0.000101,2]
[338483549,1726691237692,156.15,0.00010959,2]
[338483550,1726691283699,153.83,0.00012711,2]
[338483551,1726691285708,216.0,0.00012711,2]
[338483566,1726691431786,-314.50553226,0.000129,2]
[338483567,1726691431796,-307.12609913,0.000129,2]
[338483568,1726691431806,-197.41791363,0.000129,2]
[338483569,1726691431815,-385.95045498,0.00012973,2]